fUST/lending_fUST_20240726
["ID","MTS","AMOUNT","RATE_DAILY","PERIOD"]
[333221054,1721951449228,-437.45632469,0.00014794,2]
[333221055,1721951449238,-500.0,0.00014794,2]
[333221056,1721951449249,-617.81,0.00014794,2]
[333221057,1721951449260,-791.8,0.00014794,2]
[333221058,1721951449272,-678.26,0.00014794,2]
[333221060,1721951449283,-518.81,0.00014794,2]
[333221062,1721951449295,-500.0,0.00014794,2]
[333221064,1721951449306,-1235.18,0.00014794,2]
[333221066,1721951449319,-815.11,0.00014794,2]
[333221068,1721951449330,-500.0,0.00014794,2]
[333221070,1721951449341,-500.0,0.00014794,2]
[333221072,1721951449352,-500.0,0.00014794,2]
[333221074,1721951449363,-500.0,0.00014794,2]
[333221076,1721951449374,-575.74,0.00014794,2]
[333221078,1721951449385,-500.0,0.00014794,2]
[333221080,1721951449397,-500.0,0.00014794,2]
[333221083,1721951449410,-867.24,0.00014794,2]
[333221085,1721951449421,-209.57274267,0.00014794,2]
[333221087,1721951449432,-500.0,0.00014794,2]
[333221089,1721951449443,-567.23,0.00014794,2]
[333221091,1721951449455,-170.85652846,0.00014794,2]
[333221093,1721951449465,-500.0,0.00014794,2]
[333221095,1721951449475,-619.50946793,0.00014794,2]
[333221097,1721951449487,-641.11,0.00014794,2]
[333221099,1721951449498,-1005.92,0.00014794,2]
[333221101,1721951449508,-500.0,0.00014794,2]
[333221103,1721951449519,-500.0,0.00014794,2]
[333221105,1721951449529,-833.23,0.00014794,2]
[333221107,1721951449543,-500.0,0.00014794,2]
[333221110,1721951449555,-500.0,0.00014794,2]
[333221112,1721951449567,-1735.66,0.00014794,2]
[333221114,1721951449578,-500.0,0.00014794,2]
[333221116,1721951449589,-500.0,0.00014794,2]
[333221117,1721951449599,-513.67,0.00014794,2]
[333221119,1721951449609,-522.63,0.00014794,2]
[333221121,1721951449620,-1144.41,0.00014794,2]
[333221123,1721951449630,-500.0,0.00014794,2]
[333221125,1721951449642,-502.05,0.00014794,2]
[333221127,1721951449652,-739.94,0.00014794,2]
[333221129,1721951449663,-500.0,0.00014794,2]
[333221131,1721951449674,-844.57,0.00014794,2]
[333221133,1721951449686,-503.56,0.00014794,2]
[333221136,1721951449697,-500.0,0.00014794,2]
[333221138,1721951449708,-500.0,0.00014794,2]
[333221140,1721951449719,-500.0,0.00014794,2]
[333221142,1721951449731,-500.0,0.00014794,2]
[333221144,1721951449742,-1024.46,0.00014794,2]
[333221146,1721951449752,-765.22,0.00014794,2]
[333221148,1721951449763,-500.0,0.00014794,2]
[333221150,1721951449773,-500.0,0.00014794,2]
[333221152,1721951449784,-730.91,0.00014794,2]
[333221154,1721951449795,-1043.44,0.00014794,2]
[333221155,1721951449806,-779.25,0.00014794,2]
[333221158,1721951449817,-423.30461367,0.00014794,2]
[333221160,1721951449827,-500.0,0.00014794,2]
[333221162,1721951449839,-500.0,0.00014794,2]
[333221164,1721951449849,-949.89,0.00014794,2]
[333221166,1721951449860,-500.0,0.00014794,2]
[333221168,1721951449872,-500.0,0.00014794,2]
[333221170,1721951449887,-980.8,0.00014794,2]
[333221172,1721951449899,-856.66,0.00014794,2]
[333221174,1721951449910,-3348.86,0.00014794,2]
[333221176,1721951449921,-2210.28,0.00014794,2]
[333221178,1721951449933,-665.13,0.00014794,2]
[333221180,1721951449943,-1158.17,0.00014794,2]
[333221182,1721951449955,-500.0,0.00014794,2]
[333221185,1721951449967,-1702.32,0.00014794,2]
[333221187,1721951449979,-778.46,0.00014794,2]
[333221189,1721951449991,-1081.15,0.00014794,2]
[333221191,1721951450003,-2003.25,0.00014794,2]
[333221193,1721951450016,-836.95,0.00014794,2]
[333221196,1721951450028,-1101.69,0.00014794,2]
[333221198,1721951450039,-500.0,0.00014794,2]
[333221200,1721951450050,-662.66,0.00014794,2]
[333221202,1721951450059,-151.0,0.00014794,2]
[333221204,1721951450071,-1167.96,0.00014794,2]
[333221206,1721951450082,-509.6,0.00014794,2]
[333221208,1721951450092,-151.0,0.00014794,2]
[333221210,1721951450105,-1306.29,0.00014794,2]
[333221212,1721951450115,-613.78,0.00014794,2]
[333221214,1721951450127,-717.82,0.00014794,2]
[333221216,1721951450139,-4921.26,0.00014794,2]
[333221218,1721951450149,-500.0,0.00014794,2]
[333221221,1721951450161,-500.0,0.00014794,2]
[333221223,1721951450171,-802.77,0.00014794,2]
[333221225,1721951450182,-980.21,0.00014794,2]
[333221227,1721951450192,-534.15,0.00014794,2]
[333221229,1721951450202,-500.0,0.00014794,2]
[333221231,1721951450213,-1486.1,0.00014794,2]
[333221233,1721951450224,-559.36,0.00014794,2]
[333221235,1721951450236,-500.0,0.00014794,2]
[333221238,1721951450249,-500.0,0.00014794,2]
[333221240,1721951450261,-500.0,0.00014794,2]
[333221242,1721951450273,-1146.62,0.00014794,2]
[333221244,1721951450283,-500.0,0.00014794,2]
[333221246,1721951450294,-1281.33,0.00014794,2]
[333221249,1721951450305,-698.15,0.00014794,2]
[333221251,1721951450316,-628.13,0.00014794,2]
[333221253,1721951450327,-665.27,0.00014794,2]
[333221256,1721951450338,-1181.92,0.00014794,2]
[333221258,1721951450362,-500.0,0.00014794,2]
[333221261,1721951450373,-500.0,0.00014794,2]
[333221263,1721951450385,-682.27,0.00014794,2]
[333221265,1721951450397,-1933.59,0.00014794,2]
[333221267,1721951450410,-500.0,0.00014794,2]
[333221269,1721951450421,-500.0,0.00014794,2]
[333221272,1721951450434,-561.83,0.00014794,2]
[333221274,1721951450446,-500.0,0.00014794,2]
[333221276,1721951450458,-500.0,0.00014794,2]
[333221278,1721951450468,-7202.94,0.00014794,2]
[333221281,1721951450479,-1364.36,0.00014794,2]
[333221283,1721951450491,-1150.13,0.00014794,2]
[333221285,1721951450501,-603.97,0.00014794,2]
[333221287,1721951450511,-500.0,0.00014794,2]
[333221289,1721951450521,-500.0,0.00014794,2]
[333221291,1721951450532,-500.0,0.00014794,2]
[333221293,1721951450544,-1203.13,0.00014794,2]
[333221295,1721951450554,-757.91,0.00014794,2]
[333221297,1721951450564,-5993.65,0.00014794,2]
[333221300,1721951450577,-3064.3,0.00014794,2]
[333221302,1721951450587,-500.0,0.00014794,2]
[333221304,1721951450598,-500.0,0.00014794,2]
[333221306,1721951450609,-1356.49,0.00014794,2]
[333221308,1721951450621,-500.0,0.00014794,2]
[333221310,1721951450631,-587.04,0.00014794,2]
[333221312,1721951450643,-500.0,0.00014794,2]
[333221315,1721951450654,-1273.76,0.00014794,2]
[333221317,1721951450664,-658.3,0.00014794,2]
[333221319,1721951450674,-600.0,0.00014882,2]
[333221321,1721951450685,-620.00026226,0.00014891,2]
[333221323,1721951450697,-2552.086738,0.00015,2]
[333221325,1721951450708,-2427.17759688,0.00015,2]
[333221327,1721951450720,-2004.39033223,0.00015,2]
[333221330,1721951450732,-222.13862729,0.00015,2]
[333221332,1721951450743,-5461.44501962,0.00015,2]
[333221334,1721951450754,-3286.42122167,0.00015,2]
[333221336,1721951450765,-1006.69332593,0.00015,2]
[333221338,1721951450778,-12002.25499591,0.00015,2]
[333221341,1721951450788,-15002.81874507,0.00015,2]
[333221343,1721951450799,-9502.38513258,0.00015,4]
[333221359,1721951450948,-500.0,0.00013698,2]
[333221361,1721951450961,-619.39231752,0.00013698,2]
[333221363,1721951450972,-151.0,0.0001452,2]
[333221365,1721951450982,-680.4583009,0.00015,4]
[333221367,1721951450994,-212.10168323,0.00015,2]
[333221369,1721951451006,-2151.32,0.00015,31]
[333221371,1721951451017,-2151.32,0.00015,31]
[333221373,1721951451027,-2151.32,0.00015,31]
[333221376,1721951451037,-2151.32,0.00015,31]
[333221378,1721951451049,-2133.68490383,0.00015,31]
[333225153,1721952165268,1000.0,0.00025,120]
[333225196,1721952632236,-154.80651041,9.999e-05,2]
[333225198,1721952632250,-355.4967211,9.999e-05,2]
[333225199,1721952632262,-586.23740997,9.999e-05,2]
[333225200,1721952632295,-0.08153769,9.999e-05,2]
[333225201,1721952632304,-309.47390132,9.999e-05,2]
[333225202,1721952632317,-309.52024362,9.999e-05,2]
[333225203,1721952632325,-2591.22431737,0.00011969,2]
[333225232,1721952638273,-22308.77568263,0.00011969,2]
[333225234,1721952638284,-166.666668,0.00012346,2]
[333225236,1721952638296,-166.666668,0.00012475,2]
[333225239,1721952638308,-166.666668,0.00012604,2]
[333225241,1721952638321,-166.666668,0.00012732,2]
[333225243,1721952638334,-166.666668,0.00012861,2]
[333225245,1721952638345,-166.666668,0.0001299,2]
[333225248,1721952638358,-200.0,0.00013425,2]
[333225250,1721952638369,-1622.17662843,0.00013598,2]
[333225252,1721952638381,-464391.171513,0.00013688,2]
[333225254,1721952638392,-500.0,0.00013698,2]
[333225256,1721952638403,-500.0,0.00013698,2]
[333225258,1721952638415,-500.0,0.00013698,2]
[333225261,1721952638425,-500.0,0.00013698,2]
[333225263,1721952638436,-500.0,0.00013698,2]
[333225265,1721952638448,-547.94,0.00013698,2]
[333225267,1721952638459,-500.0,0.00013698,2]
[333225269,1721952638472,-179.67497772,0.00013698,2]
[333225272,1721952638484,-500.0,0.00013698,2]
[333225274,1721952638495,-500.0,0.00013698,2]
[333225276,1721952638506,-500.0,0.00013698,2]
[333225278,1721952638518,-500.0,0.00013698,2]
[333225280,1721952638528,-644.63839208,0.00013698,2]
[333225283,1721952638540,-500.0,0.00013698,2]
[333225285,1721952638550,-500.0,0.00013698,2]
[333225287,1721952638562,-500.0,0.00013698,2]
[333225289,1721952638571,-500.0,0.00013698,2]
[333225291,1721952638580,-500.0,0.00013698,2]
[333225293,1721952638591,-500.0,0.00013698,2]
[333225294,1721952638603,-500.0,0.00013698,2]
[333225295,1721952638615,-500.0,0.00013698,2]
[333225296,1721952638627,-500.0,0.00013698,2]
[333225297,1721952638637,-393.76072345,0.00013698,2]
[333225349,1721952640404,-106.23927655,0.00013698,2]
[333225350,1721952640414,-500.0,0.00013698,2]
[333225351,1721952640423,-500.0,0.00013698,2]
[333225352,1721952640433,-273.91436274,0.00013698,2]
[333225353,1721952640443,-500.0,0.00013698,2]
[333225354,1721952640452,-500.0,0.00013698,2]
[333225355,1721952640462,-500.0,0.00013698,2]
[333225357,1721952640471,-500.0,0.00013698,2]
[333225359,1721952640481,-500.0,0.00013698,2]
[333225361,1721952640491,-500.0,0.00013698,2]
[333225363,1721952640500,-500.0,0.00013698,2]
[333225365,1721952640510,-500.0,0.00013698,2]
[333225367,1721952640520,-500.0,0.00013698,2]
[333225369,1721952640529,-500.0,0.00013698,2]
[333225371,1721952640539,-500.0,0.00013698,2]
[333225373,1721952640548,-500.0,0.00013698,2]
[333225375,1721952640557,-515.51728115,0.00013698,2]
[333225377,1721952640568,-500.0,0.00013698,2]
[333225378,1721952640577,-508.83262433,0.00013698,2]
[333225380,1721952640587,-500.0,0.00013698,2]
[333225382,1721952640596,-512.45577569,0.00013698,2]
[333225384,1721952640605,-500.0,0.00013698,2]
[333225386,1721952640615,-500.0,0.00013698,2]
[333225388,1721952640624,-500.0,0.00013698,2]
[333225390,1721952640634,-569.73,0.00013698,2]
[333225392,1721952640643,-641.39706208,0.00013698,2]
[333225394,1721952640653,-500.0,0.00013698,2]
[333225396,1721952640662,-500.0,0.00013698,2]
[333225398,1721952640672,-500.0,0.00013698,2]
[333225401,1721952640682,-500.0,0.00013698,2]
[333225403,1721952640692,-500.0,0.00013698,2]
[333225405,1721952640702,-500.0,0.00013698,2]
[333225407,1721952640711,-500.0,0.00013698,2]
[333225409,1721952640720,-500.0,0.00013698,2]
[333225411,1721952640730,-210.31570925,0.00013698,2]
[333225413,1721952640739,-500.0,0.00013698,2]
[333225415,1721952640748,-760.41,0.00013698,2]
[333225417,1721952640758,-500.0,0.00013698,2]
[333225419,1721952640767,-500.0,0.00013698,2]
[333225421,1721952640776,-513.70089173,0.00013698,2]
[333225423,1721952640787,-500.0,0.00013698,2]
[333225425,1721952640796,-500.0,0.00013698,2]
[333225427,1721952640807,-500.0,0.00013698,2]
[333225429,1721952640817,-500.0,0.00013698,2]
[333225431,1721952640826,-500.0,0.00013698,2]
[333225433,1721952640836,-510.23168237,0.00013698,2]
[333225435,1721952640847,-496.6060356,0.00013698,2]
[333225441,1721952640897,-3.3939644,0.00013698,2]
[333225444,1721952640909,-500.0,0.00013698,2]
[333225446,1721952640920,-519.45725091,0.00013698,2]
[333225448,1721952640932,-500.0,0.00013698,2]
[333225450,1721952640943,-500.0,0.00013698,2]
[333225452,1721952640952,-242.59731715,0.00013698,2]
[333225455,1721952640965,-257.40268285,0.00013698,2]
[333225457,1721952640975,-500.0,0.00013698,2]
[333225459,1721952640985,-500.0,0.00013698,2]
[333225461,1721952640996,-500.0,0.00013698,2]
[333225463,1721952641005,-500.0,0.00013698,2]
[333225465,1721952641014,-500.0,0.00013698,2]
[333225467,1721952641023,-500.0,0.00013698,2]
[333225469,1721952641033,-500.0,0.00013698,2]
[333225471,1721952641045,-500.0,0.00013698,2]
[333225474,1721952641056,-500.0,0.00013698,2]
[333225476,1721952641070,-500.0,0.00013698,2]
[333225478,1721952641079,-500.0,0.00013698,2]
[333225480,1721952641090,-825.14,0.00013698,2]
[333225482,1721952641101,-500.0,0.00013698,2]
[333225484,1721952641113,-500.0,0.00013698,2]
[333225486,1721952641124,-513.67,0.00013698,2]
[333225489,1721952641135,-508.29011222,0.00013698,2]
[333225491,1721952641145,-500.0,0.00013698,2]
[333225493,1721952641155,-500.0,0.00013698,2]
[333225495,1721952641167,-500.0,0.00013698,2]
[333225497,1721952641177,-500.0,0.00013698,2]
[333225499,1721952641186,-1205.77,0.00013698,2]
[333225501,1721952641196,-358.28955002,0.00013698,2]
[333225503,1721952641209,-141.71044998,0.00013698,2]
[333225505,1721952641219,-500.0,0.00013698,2]
[333225507,1721952641229,-1005.9,0.00013698,2]
[333225510,1721952641240,-703.81,0.00013698,2]
[333225512,1721952641256,-500.0,0.00013698,2]
[333225514,1721952641267,-500.0,0.00013698,2]
[333225516,1721952641280,-500.0,0.00013698,2]
[333225519,1721952641292,-500.0,0.00013698,2]
[333225521,1721952641303,-500.0,0.00013698,2]
[333225523,1721952641316,-500.0,0.00013698,2]
[333225525,1721952641328,-500.0,0.00013698,2]
[333225527,1721952641340,-500.0,0.00013698,2]
[333225530,1721952641352,-500.0,0.00013698,2]
[333225532,1721952641363,-500.0,0.00013698,2]
[333225534,1721952641375,-502.67366809,0.00013698,2]
[333225536,1721952641385,-500.0,0.00013698,2]
[333225538,1721952641397,-500.0,0.00013698,2]
[333225541,1721952641408,-500.0,0.00013698,2]
[333225543,1721952641418,-500.0,0.00013698,2]
[333225545,1721952641428,-500.0,0.00013698,2]
[333225547,1721952641439,-818.08,0.00013698,2]
[333225549,1721952641449,-500.0,0.00013698,2]
[333225551,1721952641461,-500.0,0.00013698,2]
[333225554,1721952641473,-500.0,0.00013698,2]
[333225556,1721952641483,-503.68402711,0.00013698,2]
[333225558,1721952641494,-500.0,0.00013698,2]
[333225560,1721952641504,-500.0,0.00013698,2]
[333225562,1721952641515,-500.0,0.00013698,2]
[333225564,1721952641528,-500.0,0.00013698,2]
[333225567,1721952641539,-500.0,0.00013698,2]
[333225569,1721952641549,-500.0,0.00013698,2]
[333225571,1721952641561,-419.31947878,0.00013698,2]
[333225573,1721952641573,-500.0,0.00013698,2]
[333225575,1721952641583,-502.98127505,0.00013698,2]
[333225577,1721952641594,-500.0,0.00013698,2]
[333225579,1721952641605,-500.0,0.00013698,2]
[333225582,1721952641616,-630.85090901,0.00013698,2]
[333225584,1721952641625,-500.0,0.00013698,2]
[333225586,1721952641636,-500.0,0.00013698,2]
[333225588,1721952641648,-603.1,0.00013698,2]
[333225590,1721952641657,-500.0,0.00013698,2]
[333225592,1721952641669,-500.0,0.00013698,2]
[333225595,1721952641680,-500.0,0.00013698,2]
[333225597,1721952641690,-772.94,0.00013698,2]
[333225599,1721952641700,-667.97,0.00013698,2]
[333225601,1721952641712,-500.0,0.00013698,2]
[333225603,1721952641724,-500.0,0.00013698,2]
[333225606,1721952641736,-590.28328048,0.00013698,2]
[333225608,1721952641748,-457.2424252,0.00013698,2]
[333225610,1721952641759,-500.0,0.00013698,2]
[333225612,1721952641770,-528.08,0.00013698,2]
[333225614,1721952641780,-500.0,0.00013698,2]
[333225617,1721952641792,-518.93918711,0.00013698,2]
[333225619,1721952641803,-503.56,0.00013698,2]
[333225621,1721952641814,-500.0,0.00013698,2]
[333225623,1721952641824,-500.0,0.00013698,2]
[333225625,1721952641833,-500.0,0.00013698,2]
[333225627,1721952641842,-500.0,0.00013698,2]
[333225629,1721952641851,-500.0,0.00013698,2]
[333225631,1721952641861,-500.0,0.00013698,2]
[333225633,1721952641871,-753.36,0.00013698,2]
[333225635,1721952641883,-500.0,0.00013698,2]
[333225637,1721952641893,-500.0,0.00013698,2]
[333225639,1721952641903,-500.0,0.00013698,2]
[333225641,1721952641913,-500.0,0.00013698,2]
[333225643,1721952641923,-500.0,0.00013698,2]
[333225645,1721952641932,-500.0,0.00013698,2]
[333225647,1721952641941,-500.0,0.00013698,2]
[333225649,1721952641950,-500.0,0.00013698,2]
[333225651,1721952641959,-500.0,0.00013698,2]
[333225653,1721952641968,-528.81,0.00013698,2]
[333225655,1721952641977,-460.24857475,0.00013698,2]
[333225657,1721952641988,-500.0,0.00013698,2]
[333225658,1721952641997,-500.0,0.00013698,2]
[333225659,1721952642009,-500.0,0.00013698,2]
[333225660,1721952642020,-500.0,0.00013698,2]
[333225661,1721952642032,-423.30461367,0.00013698,2]
[333225663,1721952642043,-500.0,0.00013698,2]
[333225665,1721952642055,-500.0,0.00013698,2]
[333225667,1721952642068,-500.0,0.00013698,2]
[333225669,1721952642079,-500.0,0.00013698,2]
[333225671,1721952642090,-500.0,0.00013698,2]
[333225674,1721952642102,-562.14,0.00013698,2]
[333225676,1721952642112,-500.0,0.00013698,2]
[333225678,1721952642123,-500.0,0.00013698,2]
[333225680,1721952642135,-701.99,0.00013698,2]
[333225683,1721952642148,-500.0,0.00013698,2]
[333225685,1721952642159,-902.84,0.00013698,2]
[333225687,1721952642170,-501.8751649,0.00013698,2]
[333225689,1721952642181,-576.92,0.00013698,2]
[333225691,1721952642192,-500.0,0.00013698,2]
[333225693,1721952642201,-724.44,0.00013698,2]
[333225695,1721952642211,-500.0,0.00013698,2]
[333225697,1721952642222,-500.0,0.00013698,2]
[333225700,1721952642234,-500.0,0.00013698,2]
[333225702,1721952642248,-534.84,0.00013698,2]
[333225704,1721952642259,-500.0,0.00013698,2]
[333225706,1721952642271,-500.0,0.00013698,2]
[333225708,1721952642283,-500.0,0.00013698,2]
[333225711,1721952642295,-575.96483489,0.00013698,2]
[333225713,1721952642305,-500.0,0.00013698,2]
[333225715,1721952642317,-500.0,0.00013698,2]
[333225717,1721952642329,-500.0,0.00013698,2]
[333225719,1721952642341,-564.32,0.00013698,2]
[333225721,1721952642356,-500.0,0.00013698,2]
[333225723,1721952642365,-2667.56,0.00013698,2]
[333225725,1721952642374,-2667.56,0.00013698,2]
[333225727,1721952642383,-878.47,0.00013698,2]
[333225729,1721952642393,-2667.56,0.00013698,2]
[333225731,1721952642402,-2667.56,0.00013698,2]
[333225733,1721952642412,-2667.56,0.00013698,2]
[333225735,1721952642422,-2667.56,0.00013698,2]
[333225737,1721952642431,-2667.56,0.00013698,2]
[333225740,1721952642442,-2667.56,0.00013698,2]
[333225742,1721952642452,-2667.56,0.00013698,2]
[333225744,1721952642462,-2667.56,0.00013698,2]
[333225746,1721952642472,-525.41758468,0.00013698,2]
[333225748,1721952642482,-2667.56,0.00013698,2]
[333225750,1721952642491,-821.03,0.00013698,2]
[333225752,1721952642500,-2667.56,0.00013698,2]
[333225754,1721952642510,-2667.56,0.00013698,2]
[333225756,1721952642520,-2667.56,0.00013698,2]
[333225758,1721952642530,-2667.56,0.00013698,2]
[333225760,1721952642539,-2667.56,0.00013698,2]
[333225762,1721952642549,-2667.56,0.00013698,2]
[333225764,1721952642559,-2667.56,0.00013698,2]
[333225765,1721952642570,-2667.56,0.00013698,2]
[333225767,1721952642581,-2667.56,0.00013698,2]
[333225769,1721952642590,-2667.56,0.00013698,2]
[333225772,1721952642600,-2667.56,0.00013698,2]
[333225773,1721952642609,-2667.56,0.00013698,2]
[333225776,1721952642620,-2667.66716214,0.00013698,2]
[333225778,1721952642629,-501.69911619,0.00013698,2]
[333225780,1721952642639,-500.0,0.00013698,2]
[333225782,1721952642649,-500.0,0.00013698,2]
[333225784,1721952642658,-500.0,0.00013698,2]
[333225785,1721952642668,-500.0,0.00013698,2]
[333225787,1721952642677,-500.0,0.00013698,2]
[333225789,1721952642686,-330.83450562,0.00013698,2]
[333225791,1721952642696,-500.0,0.00013698,2]
[333225794,1721952642707,-500.0,0.00013698,2]
[333225797,1721952642716,-500.0,0.00013698,2]
[333225799,1721952642725,-500.0,0.00013698,2]
[333225801,1721952642735,-500.0,0.00013698,2]
[333225804,1721952642744,-500.0,0.00013698,2]
[333225806,1721952642753,-500.0,0.00013698,2]
[333225809,1721952642762,-500.0,0.00013698,2]
[333225812,1721952642772,-500.0,0.00013698,2]
[333225815,1721952642781,-1003.43,0.00013698,2]
[333225818,1721952642790,-500.0,0.00013698,2]
[333225821,1721952642800,-883.12,0.00013698,2]
[333225824,1721952642809,-503.40828399,0.00013698,2]
[333225827,1721952642821,-500.0,0.00013698,2]
[333225830,1721952642830,-547.08,0.00013698,2]
[333225834,1721952642840,-583.13,0.00013698,2]
[333225837,1721952642850,-500.0,0.00013698,2]
[333225840,1721952642859,-500.0,0.00013698,2]
[333225843,1721952642868,-537.5234073,0.00013698,2]
[333225846,1721952642878,-500.0,0.00013698,2]
[333225849,1721952642888,-500.0,0.00013698,2]
[333225853,1721952642897,-500.0,0.00013698,2]
[333225856,1721952642906,-500.0,0.00013698,2]
[333225859,1721952642916,-500.0,0.00013698,2]
[333225862,1721952642926,-500.0,0.00013698,2]
[333225864,1721952642935,-500.0,0.00013698,2]
[333225866,1721952642944,-500.0,0.00013698,2]
[333225868,1721952642953,-500.0,0.00013698,2]
[333225870,1721952642963,-500.0,0.00013698,2]
[333225872,1721952642972,-500.0,0.00013698,2]
[333225905,1721952643135,-500.0,0.00013698,2]
[333225908,1721952643144,-702.68,0.00013698,2]
[333225910,1721952643153,-501.87943531,0.00013698,2]
[333225914,1721952643163,-500.0,0.00013698,2]
[333225917,1721952643172,-660.38,0.00013698,2]
[333225919,1721952643181,-502.87563975,0.00013698,2]
[333225922,1721952643191,-500.0,0.00013698,2]
[333225926,1721952643200,-500.0,0.00013698,2]
[333225928,1721952643209,-3861.48963333,0.00013698,2]
[333225931,1721952643219,-500.0,0.00013698,2]
[333225935,1721952643228,-500.0,0.00013698,2]
[333225938,1721952643238,-500.0,0.00013698,2]
[333225940,1721952643250,-623.65,0.00013698,2]
[333225944,1721952643260,-500.0,0.00013698,2]
[333225946,1721952643269,-516.27181188,0.00013698,2]
[333225949,1721952643278,-500.0,0.00013698,2]
[333225952,1721952643287,-500.0,0.00013698,2]
[333225954,1721952643298,-500.0,0.00013698,2]
[333225956,1721952643307,-938.9,0.00013698,2]
[333225958,1721952643318,-500.0,0.00013698,2]
[333225960,1721952643330,-398.55609103,0.00013698,2]
[333225963,1721952643340,-508.88063174,0.00013698,2]
[333225965,1721952643350,-338.11479254,0.00013698,2]
[333225967,1721952643359,-500.0,0.00013698,2]
[333225969,1721952643369,-500.0,0.00013698,2]
[333225971,1721952643378,-557.89,0.00013698,2]
[333225973,1721952643387,-662.56,0.00013698,2]
[333225975,1721952643399,-899.35,0.00013698,2]
[333225977,1721952643408,-619.01,0.00013698,2]
[333225979,1721952643417,-500.0,0.00013698,2]
[333225981,1721952643430,-1163.83,0.00013698,2]
[333225984,1721952643439,-549.03,0.00013698,2]
[333225987,1721952643448,-744.09,0.00013698,2]
[333225993,1721952643458,-500.0,0.00013698,2]
[333225997,1721952643479,-500.0,0.00013698,2]
[333226001,1721952643489,-500.0,0.00013698,2]
[333226005,1721952643499,-500.0,0.00013698,2]
[333226007,1721952643509,-500.0,0.00013698,2]
[333226009,1721952643520,-1586.12,0.00013698,2]
[333226011,1721952643533,-1586.12,0.00013698,2]
[333226013,1721952643544,-1586.12,0.00013698,2]
[333226016,1721952643556,-1586.12,0.00013698,2]
[333226018,1721952643569,-1586.12,0.00013698,2]
[333226020,1721952643580,-1586.12,0.00013698,2]
[333226022,1721952643591,-1586.12,0.00013698,2]
[333226024,1721952643602,-1586.12,0.00013698,2]
[333226027,1721952643615,-1586.12,0.00013698,2]
[333226029,1721952643625,-500.0,0.00013698,2]
[333226031,1721952643637,-563.06,0.00013698,2]
[333226033,1721952643650,-1586.12,0.00013698,2]
[333226035,1721952643660,-500.0,0.00013698,2]
[333226038,1721952643670,-500.0,0.00013698,2]
[333226042,1721952643681,-500.0,0.00013698,2]
[333226045,1721952643692,-500.0,0.00013698,2]
[333226047,1721952643704,-1300.34,0.00013698,2]
[333226050,1721952643715,-676.35,0.00013698,2]
[333226054,1721952643727,-500.0,0.00013698,2]
[333226056,1721952643738,-500.0,0.00013698,2]
[333226058,1721952643751,-500.0,0.00013698,2]
[333226060,1721952643762,-500.0,0.00013698,2]
[333226064,1721952643774,-1123.65,0.00013698,2]
[333226066,1721952643785,-1121.16,0.00013698,2]
[333226068,1721952643796,-1055.01,0.00013698,2]
[333226070,1721952643808,-652.55,0.00013698,2]